Cogmind - Beta 12 @@@ ROGUE MODE // 2023.03.11 @ 21:02:41 Player: dhtilly Result: Destroyed by G-67 Veteran with Plasma Rifle Performance ------------- Evolutions (1) 500 Regions Visited (5) 1000 Robots Destroyed (42) 210 Value Destroyed (1083) 1083 Prototype IDs (7) 140 Alien Tech Used (0) 0 Bonus (727) 727 TOTAL SCORE: 3660 Bonus ------- Follower Combat Kills 241 Met Imprinter 300 Was Imprinted 300 Friendly Fire -114 Cogmind --------- Core Integrity 0/400 Matter 281/300 Energy 79/100 System Corruption 0% Temperature Cool (83) Movement Core (50) Location -6/Proximity Caves Parts ------- > --- POWER (1) -------- (None) > --- PROPULSION (3) --- (None) > --- UTILITY (3) ------ (None) > --- WEAPON (2) ------- (None) > --- INVENTORY (5) ---- Weapon Shielding Heavy EM Pulse Gun Makeshift Shrapnel Gun Phasing Sabre Peak State ------------ > --- POWER ------------ Heavy Ion Engine > --- PROPULSION ------- Light Treads Wheel Compact Wheel > --- UTILITY ---------- Large Storage Unit Bomb Factory No. 2 > --- WEAPON ----------- Improved Medium Laser Improved Assault Rifle > --- INVENTORY -------- Heavy Ion Engine Light Treads Armored Wheel Improved Flight Unit Large Storage Unit Core Shielding Weapon Shielding Makeshift Hacking Suite Hacking Drone Bay Heavy EM Pulse Gun Beam Rifle Makeshift Shrapnel Gun Bore Cannon Heavy Rocket Launcher Phasing Sabre [Rating: 29] Favorites ----------- Power Heavy Ion Engine Engine Heavy Ion Engine Propulsion Wheel Treads Light Treads Wheel Wheel Flight Unit Improved Flight Unit Utility Large Storage Unit Device Mobile Refinery Mk. CCLXVII Storage Large Storage Unit Protection Core Shielding Weapon Improved Medium Laser Energy Gun Improved Medium Laser Ballistic Gun Improved Assault Rifle Launcher Heavy Rocket Launcher Slashing Weapon Mining Claw Build | -11 -10 -9 -9 -7 -6 ------- Run | Jun Mat Mat Min Zio Pro Slots Evolved 2 | . . 2 . . . Power . | . . . . . . Propulsion 1 | . . 1 . . . Utility 1 | . . 1 . . . Weapon . | . . . . . . Parts Attached 46 | 7 4 16 4 7 8 Power 5 | 1 . 4 . . . Engine 5 | 1 . 4 . . . Core . | . . . . . . Reactor . | . . . . . . Propulsion 11 | 2 . 5 1 . 3 Treads 3 | . . 2 . . 1 Leg . | . . . . . . Wheel 6 | 2 . 2 1 . 1 Hover . | . . . . . . Flight 2 | . . 1 . . 1 Utility 15 | 1 3 2 1 7 1 Device 3 | . . . . 3 . Storage 2 | 1 1 . . . . Processor . | . . . . . . Hackware . | . . . . . . Protection 10 | . 2 2 1 4 1 Artifact . | . . . . . . Weapon 15 | 3 1 5 2 . 4 Energy Gun 9 | 3 1 4 . . 1 Energy Cannon . | . . . . . . Ballistic Gun 4 | . . 1 1 . 2 Ballistic Cannon . | . . . . . . Launcher 1 | . . . . . 1 Special Weapon . | . . . . . . Impact Weapon . | . . . . . . Slashing Weapon 1 | . . . 1 . . Piercing Weapon . | . . . . . . Special Melee Weapon . | . . . . . . Unidentified Prototypes 7 | . . 4 . 3 . Parts Lost 15 | . . 6 1 . 8 Power 1 | . . 1 . . . Propulsion 8 | . . 2 1 . 5 Utility 2 | . . 1 . . 1 Weapon 4 | . . 2 . . 2 Highest Loss Streak 3 | . . 2 1 . 3 To Critical Strikes . | . . . . . . Average Slot Usage (%) 98 | . 94 96 99 99 94 Engine 11 | . 14 10 11 11 10 Treads 8 | . . 7 11 11 12 Wheel 23 | . 28 25 21 22 16 Storage 11 | . 14 11 11 11 11 Protection 19 | . 8 19 22 21 22 Energy Gun 15 | . 28 20 11 11 10 Ballistic Gun 7 | . . 1 9 11 10 Naked Turns 1 | . . . . . 1 Heaviest Build 46 | 13 36 42 42 42 46 Greatest Support 36 | 26 26 36 20 16 26 Greatest Overweight (x) 3 | . 1 2 2 2 3 Average Overweight (x) 1 | . . 1 2 2 1 Largest Inventory Capacity 15 | 8 15 15 15 15 15 Average Capacity 14 | 6 14 15 15 15 14 Most Carried 15 | 4 14 15 15 15 15 Average Carried 13 | 2 9 13 14 14 13 Final Capacity 15 | 8 15 15 15 15 5 Final Carried 15 | 4 14 15 14 15 4 Class Distribution -------------------- 100% | Mutant Dominant Class ---------------- Mutant | -10/Materials Mutant | -9/Materials Mutant | -9/Mines Mutant | -7/Zion Mutant | -6/Proximity Caves Resources | -11 -10 -9 -9 -7 -6 ----------- Run | Jun Mat Mat Min Zio Pro Matter Collected 711 | 248 62 150 67 70 114 Remotely . | . . . . . . Salvage Created 1655 | . 586 799 127 . 143 Parts 87 | . 28 46 6 . 7 Haulers Intercepted 5 | . 2 3 . . . Recyclers Shooed 1 | . . 1 . . . Parts Field Recycled . | . . . . . . Retrieved Matter . | . . . . . . Parts Self-Destructed 12 | . . . . 3 9 Prevented 3 | . . . . . 3 Kills | -11 -10 -9 -9 -7 -6 ------- Run | Jun Mat Mat Min Zio Pro Combat Hostiles Destroyed 32 | . 10 14 3 . 5 Guns 26 | . 10 12 3 . 1 AOE 6 | . . 2 . . 4 Classes Destroyed 10 | . 3 5 . . 2 Worker 2 | . 1 1 . . . Hauler 5 | . 2 3 . . . Recycler 1 | . . 1 . . . Mechanic 1 | . . . . . 1 Operator 1 | . . 1 . . . Swarmer 10 | . . 6 . . 4 Grunt 15 | . 10 3 2 . . Brawler 1 | . . . . . 1 Duelist 1 | . . 1 . . . Sentry 5 | . . 4 1 . . Best Kill Streak 4 | . 4 4 2 . 4 Combat Bots Only 4 | . 3 4 2 . 4 Max Kills in Single Turn 3 | . 1 1 1 . 3 Gunslinging . | . . . . . . Exploded 3 | . . 1 . . 3 Melee . | . . . . . . Uniques/NPCs Destroyed . | . . . . . . Combat | -11 -10 -9 -9 -7 -6 -------- Run | Jun Mat Mat Min Zio Pro Damage Taken 2320 | . 260 751 80 . 1229 Core 482 | . 77 136 25 . 244 Absorbed by Shields . | . . . . . . Redirected to Shielding 61 | . . 30 5 . 26 Core Remaining (%) 84 | 100 69 . . . . Volleys Fired 119 | . 27 57 9 . 26 Largest 2 | . 2 2 2 . 2 Hottest 101 | . 85 101 79 . 84 Shots Fired 226 | . 54 113 18 . 41 Gun 224 | . 54 113 18 . 39 Cannon . | . . . . . . Launcher 2 | . . . . . 2 Special . | . . . . . . Kinetic 30 | . . . 9 . 21 Thermal 111 | . 27 57 9 . 18 Explosive 2 | . . . . . 2 Electromagnetic 83 | . 27 56 . . . Robot Hit Streak 25 | . 15 25 9 . 20 Robot Miss Streak 8 | . 2 8 1 . 3 Penetration Max . | . . . . . . Secondary Targets 1 | . . . . . 1 Max Gunslinging Chain 1 | . . . . . 1 Shots Hit Robots 162 | . 41 78 13 . 30 Core Hits 77 | . 24 36 4 . 13 Critical Kills . | . . . . . . Critical Parts Destroyed . | . . . . . . Critical Strikes 3 | . . 3 . . . Burn 2 | . . 2 . . . Corrupt 1 | . . 1 . . . Melee Attacks 8 | . . . 8 . . Impact . | . . . . . . Slashing 8 | . . . 8 . . Piercing . | . . . . . . Sneak Attacks . | . . . . . . Combat Hostiles . | . . . . . . Follow-up Attacks . | . . . . . . Damage Inflicted 2872 | . 553 1233 231 . 855 Guns 2287 | . 553 1020 231 . 483 Cannons . | . . . . . . Explosions 585 | . . 213 . . 372 Melee . | . . . . . . Ramming . | . . . . . . Kinetic 390 | . . . 127 . 263 Thermal 1119 | . 181 614 104 . 220 Explosive 372 | . . . . . 372 Electromagnetic 991 | . 372 619 . . . Impact . | . . . . . . Slashing . | . . . . . . Piercing . | . . . . . . Highest Corruption . | . . . . . . Average Corruption . | . . . . . . Corruption Purged . | . . . . . . Corruption Blocked . | . . . . . . Overload Shots . | . . . . . . Overflow Damage 58 | . . 6 . . 52 Projectiles . | . . . . . . Explosions 58 | . . 6 . . 52 Melee . | . . . . . . Knockbacks . | . . . . . . Impact . | . . . . . . Kinetic . | . . . . . . Secondary . | . . . . . . Self-Inflicted Damage 206 | . . 151 . . 55 Shots 6 | . . 5 . . 1 Rammed . | . . . . . . Targets Rammed . | . . . . . . Kicked . | . . . . . . Crushed . | . . . . . . Highest Temperature 228 | . 126 228 106 . 109 Average Temperature 51 | . 46 55 40 . 47 Received Heat Transfer 462 | . 159 138 27 . 138 Effects 1 | . . 1 . . . Energy Bleed 1 | . . 1 . . . Siege Activations . | . . . . . . Robots Corrupted . | . . . . . . Combat Hostiles . | . . . . . . Parts Fried 2 | . . 2 . . . Impact Corruptions . | . . . . . . Robots Melted . | . . . . . . Combat Hostiles . | . . . . . . Parts Melted 5 | . . 4 . . 1 Heat Transferred 2494 | . 425 1292 222 . 555 Parts Sabotaged . | . . . . . . Parts Stolen . | . . . . . . Parts Stripped . | . . . . . . Power Chain Reactions 5 | . . 5 . . . Missiles Intercepted . | . . . . . . Alert | -11 -10 -9 -9 -7 -6 ------- Run | Jun Mat Mat Min Zio Pro Peak Influence 403 | . 254 403 104 . . Initial 48 | . . 48 10 . . Average 146 | . 141 238 28 . . Maximum Alert Level 2 | . 1 2 . . . Low Security (%) 63 | 100 67 34 100 . . Level 1 35 | . 32 64 . . . Level 2 . | . . . . . . Level 3 . | . . . . . . Level 4 . | . . . . . . Level 5 . | . . . . . . High Security . | . . . . . . Max Security . | . . . . . . Squads Dispatched 5 | . 4 . . . 1 Investigation 3 | . 3 . . . . Extermination . | . . . . . . Reinforcement 1 | . 1 . . . . Assault 1 | . . . . . 1 Garrison . | . . . . . . Intercept . | . . . . . . Searches Triggered . | . . . . . . Construction Impeded . | . . . . . . Haulers Reinforced . | . . . . . . Active Scanning Responses . | . . . . . . Cargo Convoy Interrupts . | . . . . . . Stealth | -11 -10 -9 -9 -7 -6 --------- Run | Jun Mat Mat Min Zio Pro Distress Signals 3 | . 3 . . . . Communications Jammed . | . . . . . . Distress Signals . | . . . . . . Times Spotted 62 | . 17 24 4 . 17 Peak Tracking Total 6 | . 5 5 3 . 6 Tactical Retreats 3 | . 1 2 . . . Traps | -11 -10 -9 -9 -7 -6 ------- Run | Jun Mat Mat Min Zio Pro Traps Triggered 3 | . 2 1 . . . Indirectly . | . . . . . . Trap Hack Attempts . | . . . . . . Triggered . | . . . . . . Disarmed . | . . . . . . Reprogrammed . | . . . . . . Reused . | . . . . . . Traps Extracted . | . . . . . . Installed . | . . . . . . Triggered . | . . . . . . Machines | -11 -10 -9 -9 -7 -6 ---------- Run | Jun Mat Mat Min Zio Pro Machines Disabled 1 | . . 1 . . . Max in Single Turn 1 | . . 1 . . . Machines Repaired . | . . . . . . Machines Sabotaged . | . . . . . . Overloaded Fab Kills . | . . . . . . Hacking | -11 -10 -9 -9 -7 -6 --------- Run | Jun Mat Mat Min Zio Pro Machines Accessed 8 | . 3 5 . . . Terminals 8 | . 3 5 . . . Fabricators . | . . . . . . Repair Stations . | . . . . . . Recycling Units . | . . . . . . Scanalyzers . | . . . . . . Garrison Access . | . . . . . . Total Hacks 22 | . 9 13 . . . Successful 14 | . 5 9 . . . Failed 8 | . 4 4 . . . Catastrophic 1 | . . 1 . . . Database Lockouts . | . . . . . . Manual 20 | . 8 10 . 2 . Terminals 22 | . 9 13 . . . Fabricators . | . . . . . . Repair Stations . | . . . . . . Recycling Units . | . . . . . . Scanalyzers . | . . . . . . Garrison Access . | . . . . . . Terminal Hacks 5 | . 2 3 . . . Level Access Points 1 | . 1 . . . . Unreport Threat 2 | . . 2 . . . Zone Layout 2 | . 1 1 . . . Fabricator Hacks . | . . . . . . Repair Station Hacks . | . . . . . . Recycling Unit Hacks . | . . . . . . Scanalyzer . | . . . . . . Garrison Access Hacks . | . . . . . . Unauthorized Hacks 9 | . 3 6 . . . Terminals 9 | . 3 6 . . . Track 3 | . 1 2 . . . Botnet 6 | . 2 4 . . . Fabricators . | . . . . . . Repair Stations . | . . . . . . Recycling Units . | . . . . . . Scanalyzers . | . . . . . . Garrison Access . | . . . . . . Data Cores Recovered 1 | . . 1 . . . Used 1 | . . 1 . . . Hacking Detections 8 | . 3 5 . . . Full Trace Events 1 | . 1 . . . . Feedback Events . | . . . . . . Feedback Blocked . | . . . . . . Robot Schematics Acquired . | . . . . . . Robots Built . | . . . . . . Authchips . | . . . . . . Time . | . . . . . . Total Robot Build Rating . | . . . . . . Part Schematics Acquired . | . . . . . . Parts Built . | . . . . . . Authchips . | . . . . . . Time . | . . . . . . Total Part Build Rating . | . . . . . . Parts Repaired . | . . . . . . Time . | . . . . . . Parts Recycled . | . . . . . . Recycled Matter . | . . . . . . Retrieved Matter . | . . . . . . Retrieved Components . | . . . . . . Parts Scanalyzed . | . . . . . . Part Schematics Acquired . | . . . . . . Parts Damaged . | . . . . . . Bothacking | -11 -10 -9 -9 -7 -6 ------------ Run | Jun Mat Mat Min Zio Pro Used RIF Installer . | . . . . . . Robots Hacked . | . . . . . . Non-combat . | . . . . . . Combat . | . . . . . . Robot Hacks Applied . | . . . . . . Relay Couplers Released . | . . . . . . Fabnet Peak Effective % . | . . . . . . Robots Rewired . | . . . . . . Allies Hacked . | . . . . . . Hacks Repelled . | . . . . . . Allies | -11 -10 -9 -9 -7 -6 -------- Run | Jun Mat Mat Min Zio Pro Total Allies 6 | . . . 2 4 . Largest Group 4 | . . . 2 4 4 Highest-Rated Group 148 | . . . 58 148 145 Highest-Rated Ally 38 | . . . 31 38 38 Total Orders . | . . . . . . Ally Attacks 42 | . . . 7 . 35 Total Damage 1003 | . . . 105 . 898 Kills 8 | . . . 2 . 6 Allies Corrupted . | . . . . . . Allies Melted . | . . . . . . Intel | -11 -10 -9 -9 -7 -6 ------- Run | Jun Mat Mat Min Zio Pro Robot Analysis Total . | . . . . . . Derelict Logs Recovered 3 | . . . 2 1 . Drone Launches . | . . . . . . Drone Recoveries . | . . . . . . Exploration | -11 -10 -9 -9 -7 -6 ------------- Run | Jun Mat Mat Min Zio Pro Turns Passed 3484 | 40 530 622 415 1640 237 Spaces Moved 2392 | 32 375 378 293 1199 115 Core 3 | 3 . . . . . Treads . | . . . . . . Legs . | . . . . . . Wheels 2389 | 29 375 378 293 1199 115 Hover . | . . . . . . Flight . | . . . . . . Fastest Speed 50 | 50 90 86 110 130 105 Average Speed 118 | 83 104 102 110 130 126 Slowest Speed 135 | 90 105 110 130 130 135 Overloaded Moves . | . . . . . . Propulsion Burnouts . | . . . . . . Robots Hopped . | . . . . . . Cave-ins Triggered . | . . . . . . Exploration Rate (%) 50 | 3 69 44 76 87 25 Regions Visited 5 Branch Regions 3 Pre-discovered Areas 3 | . . . 1 2 . Known Exits Taken 1 | . 1 . . . . Unknown Exits Taken 4 | 1 . 1 1 1 . Scrap Searched 5 | . . . 1 4 . Spaces Dug . | . . . . . . Terrain Destroyed 34 | . . 12 . . 22 Melee . | . . . . . . Projectile . | . . . . . . AOE 34 | . . 12 . . 22 Terrain Rammed . | . . . . . . Walls Destroyed . | . . . . . . Machines Disabled . | . . . . . . Actions | -11 -10 -9 -9 -7 -6 --------- Run | Jun Mat Mat Min Zio Pro Total 2804 | 42 460 502 350 1285 165 Wait 185 | . 40 34 34 62 15 Move 2387 | 31 374 377 292 1198 115 Hop . | . . . . . . Pick Up 30 | 3 10 8 1 7 1 Fast Attach 19 | 7 3 4 . 5 . Attach 16 | . . 9 1 . 6 Detach 8 | 1 2 5 . . . Swap 11 | . 1 3 3 2 2 Drop 21 | . 3 5 2 11 . Fire 119 | . 27 57 9 . 26 Melee 8 | . . . 8 . . Ram . | . . . . . . Kick . | . . . . . . Crush . | . . . . . . Escape Stasis . | . . . . . . Rewire . | . . . . . . Trap . | . . . . . . Miscellaneous . | . . . . . . Route ------- -11/Junkyard -10/Materials (discovered 4 exits: *Mat x3 / [*Min]) -9/Materials (discovered 2 exits: [*Min x2]) -9/Mines (discovered 2 exits: [*Mat] / *Zio) -7/Zion -6/Proximity Caves History --------- Turn | Location | Event 27 | -11/Junkyard | Discovered new exit (range 15) 41 | -11/Junkyard | Entered Materials 52 | -10/Materials | Identified exit to Materials 204 | -10/Materials | Discovered new exit (range 8) 341 | -10/Materials | Build established: Mutant 571 | -10/Materials | Entered another Materials area 571 | -9/Materials | Evolved 2 slots: Propulsion x1, Utility x1 803 | -9/Materials | Discovered new exit (range 15) 1064 | -9/Materials | Discovered new exit (range 11) 1193 | -9/Materials | Entered Mines 1223 | -9/Mines | Learned 4 Materials zone layouts 1421 | -9/Mines | Learned location of Zion (-7) 1421 | -9/Mines | Joined a pair of Derelicts in attacking an 0b10 outpost 1504 | -9/Mines | Excavation squad dispatched 1504 | -9/Mines | A large section of the Mines collapsed 1577 | -9/Mines | A Derelict revealed a hidden shortcut to a safe place 1577 | -9/Mines | Discovered new exit (range 4) 1608 | -9/Mines | Entered Zion 1608 | -7/Zion | Accompanied by 1 ally 1778 | -7/Zion | Discovered new exit (range 12) 1887 | -7/Zion | Given the Hacking Drone Bay 1890 | -7/Zion | Found Prototype Device 1894 | -7/Zion | Identified Hacking Drone Bay 2147 | -7/Zion | Learned location of Data Miner (-6) 2259 | -7/Zion | Imprinted 2261 | -7/Zion | Declared Zion's savior 2460 | -7/Zion | Learned location of Recycling (-7) 2533 | -7/Zion | Found Prototype Device 2533 | -7/Zion | Identified Mobile Refinery Mk. CCLXVII 2644 | -7/Zion | Found Prototype Device 2644 | -7/Zion | Identified Bomb Factory No. 2 3248 | -7/Zion | Entered Proximity Caves 3248 | -6/Proximity Caves | Accompanied by 4 allies 3393 | -6/Proximity Caves | Attracted the attention of an 0b10 outpost 3444 | -6/Proximity Caves | Lost 3 parts (1n1u1w) 3465 | -6/Proximity Caves | Core integrity fell below 50% 3484 | -6/Proximity Caves | Released all parts (4) 3485 | -6/Proximity Caves | Core integrity fell below 20% 3485 | -6/Proximity Caves | Destroyed by G-67 Veteran with Plasma Rifle Last Messages --------------- 03468_ L-41 Fighter heat damages Microactuators, Axe, Imp. Deuterium Engine, Carbon-fiber Leg. 03468_ L-41 Fighter overheating. 03469_ L-41 Fighter heat spikes uncontrollably. 03469_ Corrupted Flexi-carbon Leg fries itself beyond repair. 03469_ L-41 Fighter overheating. 03470_ Chain reaction triggered in Imp. Deuterium Engine. 03470_ TV-PQS(M) destroyed. 03470_ L-41 Fighter destroyed. 03473_ The unstable cave ceiling collapses. 03473_ Arm. Wheel destroyed. 03473_ Imp. Assault Rifle destroyed. 03478_ Hvy. Ion Engine severed. 03480_ Barrage Gun severed. 03480_ Lgt. Treads destroyed. 03484_ Released Core Shielding. 03484_ Released Lrg. Storage Unit. 03484_ Released Core Shielding. 03484_ Released Beam Rifle. 03484_ Imp. Flight Unit severed. Map ----- +----------------------------------------------------+ | #????????????????????????????????????????????????? | | ##???????????????????????????????????????????????? | | ##???????? ?????????????????????????????????????? | | ##????? ?????????????????????????????????????? | | #????? ?????????????????????????????????????? | | #?????? ?????????????????????????????????????? | | #?????? #?????????????????????????????????????? | | ##????? #?????????????????????????????????????? | | #????? #?????????????????????????????????????? | | #????? #?????????????????????????????????????? | | #??### ??????????????????????????????????????? | | ??????# ??????????????????????????????????????? | | ??????# ???????????????????????????????????????? | | ####### #???? ##???????????????? ??????????????? | | ## ### ???????????????? ?????????????? | | # ??????????????????? ?????????????? | | # #?????????????????????? ??????????????? | | ## #????????????????????? ???????????????? | | ###### #???????????????????? ????????????????? | | ##????# #???????????????????# ###???????????????? | | ?????## #??????????###?????# ????????????????? | | ?????# ####??????## ##???# #????##???????????? | | ?????# # ##?????# ##?# #?? "#??????????? | | ?????# ####??# ]##[ # "#??????????? | | ???#### # # ####!! !![*! #?????????????? | | ???# " ##% ][@!%= #??????????????? | | ???# " % %ll!! # g"#??????????? | | ???# " = %%!%* #?????????????????? | | ???# ####;##;%=% g #?????????????????? | | ???# """ " # #?####=* % ????????????? | | ???# """"" # #????#####% % ??????????? | | ???# """ ###?????????[ #??????????? | | ???# ##??????????? ##???????????? | | ???###### ###???????????? ##????????????? | | ???????# #??????????????? ######?????????????? | | ???????# #??????????????? ##??????????????????? | | ??????? ???????????????##???????????????????? | | ??????## ????????????????????????????????????? | | ???????# ????????????????????????????????????? | | ???????# ## ????????????????????????????????????? | | ?????????????????????????????????????????????????? | | ?????????????????????????????????????????????????? | | ?????????????????????????????????????????????????? | | ?????????????????????????????????????????????????? | | ?????????????????????????????????????????????????? | | ?????????????????????????????????????????????????? | | ?????????????????????????????????????????????????? | | ?????????????????????????????????????????????????? | | ?????????????????????????????????????????????????? | | ?????????????????????????????????????????????????? | +----------------------------------------------------+ Best States ------------- Heat Dissipation 28 Energy Generation 14 Energy Capacity 280 Matter Stores 300 Matter Capacity 300 Sight Range 16 Terrain Scan Density 10 Armor Coverage 225 Core Shielding 20 Evasion (%) 44 Recoil Reduction 2 Item Schematics ----------------- None Robot Schematics ------------------ None Fabricated ------------ Nothing Alien Tech Used ----------------- None Achievements -------------- None Challenges ------------ None Game ------ Seed PhasingTrackerMatrix Manual? 0 Play Time 00:41:36 Cumulative 84.0 hours Start 2023.03.11 @ 20:09:48 End 2023.03.11 @ 21:02:41 Sessions 1 Manual Loads 0 Difficulty Rogue Special Mode None Game No. 48 Rogue 48 Adventurer 0 Explorer 0 Win Type - Total 0 Types 0/0/0/0/0/0/0/0/0 Lore% 39 Gallery% 49 Achievement% 40 Wizard Run 0 Options --------- ASCII 0 Keyboard 1 Movement Vi Keybinds 0 Fullscreen 1 Font 12/Smallcaps Map View 83x54 Tactical HUD 1 Map Filters NONE Filters NONE Steam 1 RUN: c6b1acb8-4359-48dc-9536-8b3f6da42abe